Workbook

Sheet Navigation
K7: Samariya Brothers
L8: Stock and Sales FOR THE PERIOD 01-Apr-2021 TO 30-Jun-2021

Sheet Dealer Report
A1: Samariya Brothers ,Sikandra 20-21
A2: Geejgad Road,Sikandra
A3: Samariyaramesh1974@gmail.Com,Mob-9799654940
A4: Pesticides Lic No :-E-45|6-12-1995
A5: Cont Name :- Ramesh Chnad Samariya
A6: Bayer Crop Science
A7: Stock Category Summary
A8: 1-Apr-2021 to 30-Jun-2021
B9: Bayer Crop Science
B10: Samariya Brothers ,Sikandra 20-21
A11: Particulars | B11: 1-Apr-2021 to 30-Jun-2021
B12: Opening Balance | C12: Inwards | D12: Outwards | E12: Closing Balance
B13: Quantity | C13: Quantity | D13: Quantity | E13: Quantity
A14: ALANTO (T)-250ML 18% | B14: 0 | C14: 0 | D14: 0 | E14: 0
A15: ANTRACOL (T) WP7010X1 KG 18% | B15: 0 | C15: 0 | D15: 0 | E15: 0
A16: ANTRACOL (T) WP70 20X500 GM 18% | B16: 0 | C16: 0 | D16: 0 | E16: 0
A17: ANTRACOL (T) WP70 -250 GM 18% | B17: 0 | C17: 0 | D17: 0 | E17: 0
A18: FOOST WP50 24X500 BAG( BAYAR) 18% | B18: 142 | C18: 0 | D18: 0 | E18: 142
A19: FOOST WP50-500G 18% ( BAYAR ) | B19: 0 | C19: 480 | D19: 0 | E19: 480
A20: GAUCHO FS 600-100 ML 18% BAYAR | B20: 10 | C20: 400 | D20: 0 | E20: 410
A21: GAUCHO FS600-5ML 18% BAYAR | B21: 40 | C21: 900 | D21: 0 | E21: 940
A22: LAUDIS BAYER | B22: 400 | C22: 40 | D22: 0 | E22: 440
A23: MILLET HYBRID 9001 20X1.5 BAG | B23: 0 | C23: 30080 | D23: 17544 | E23: 12536
A24: MILLET HYBRID 9450 20X1.5 BAG | B24: 0 | C24: 680 | D24: 590 | E24: 90
A25: MILLET PA 9180 20X1.50KG | B25: 0 | C25: 680 | D25: 660 | E25: 20
A26: OBERON-100 ML (Bayer) 18% | B26: 0 | C26: 0 | D26: 0 | E26: 0
A27: OBERON -200ML 18% | B27: 0 | C27: 0 | D27: 0 | E27: 0
A28: REGENT GR0,3 20X1KG -18% | B28: 140 | C28: 300 | D28: 0 | E28: 440
A29: REGENT GR0,3- 5 KG | B29: 20 | C29: 0 | D29: 0 | E29: 20
A30: REGENT (SC) -100GM-18% | B30: 10 | C30: 0 | D30: 0 | E30: 10
A31: REGENT (SC) 1 LTR 18% | B31: 103 | C31: 0 | D31: 0 | E31: 103
A32: REGENT (SC)-250GM 18% | B32: 100 | C32: 0 | D32: 0 | E32: 100
A33: REGENT (SC)-500G 18% | B33: 120 | C33: 0 | D33: 0 | E33: 120
A34: SOLOMAN -250 | B34: 0 | C34: 0 | D34: 0 | E34: 0
A35: SOLOMON OD300 50X100 ML-18% | B35: 0 | C35: 0 | D35: 0 | E35: 0
A36: Grand Total | B36: =SUM(B14:B35) -> 1085 | C36: =SUM(C14:C35) -> 33560 | D36: 18794 | E36: =SUM(E14:E35) -> 15851

Sheet Dealer Report working
A1: Particulars | B1: Opening Qty | C1: Purchase Qty | D1: Sales Qty | E1: CLSG | F1: Master Name | K1: Values
A2: ALANTO (T)-250ML 18% | B2: 0 | C2: 0 | D2: 0 | E2: 0 | F2: ALANTO (T) SC240 40X250ML BOT IN | J2: Row Labels | K2: Sum of Opening Qty | L2: Sum of Purchase Qty | M2: Sum of Sales Qty | N2: Sum of CLSG
A3: ANTRACOL (T) WP7010X1 KG 18% | B3: 0 | C3: 0 | D3: 0 | E3: 0 | F3: ANTRACOL (T) WP70 10X1KG BAG IN | J3: ALANTO (T) SC240 40X250ML BOT IN | K3: 0 | L3: 0 | M3: 0 | N3: 0
A4: ANTRACOL (T) WP70 20X500 GM 18% | B4: 0 | C4: 0 | D4: 0 | E4: 0 | F4: ANTRACOL (T) WP70 20X500GR BAG IN | J4: ANTRACOL (T) WP70 10X1KG BAG IN | K4: 0 | L4: 0 | M4: 0 | N4: 0
A5: ANTRACOL (T) WP70 -250 GM 18% | B5: 0 | C5: 0 | D5: 0 | E5: 0 | F5: ANTRACOL (T) WP70 40X250GR BAG IN | J5: ANTRACOL (T) WP70 20X500GR BAG IN | K5: 0 | L5: 0 | M5: 0 | N5: 0
A6: FOOST WP50 24X500 BAG( BAYAR) 18% | B6: 142 | C6: 0 | D6: 0 | E6: 142 | F6: FOOST WP50 24X500G BAG IN | J6: ANTRACOL (T) WP70 40X250GR BAG IN | K6: 0 | L6: 0 | M6: 0 | N6: 0
A7: FOOST WP50-500G 18% ( BAYAR ) | B7: 0 | C7: 480 | D7: 0 | E7: 480 | F7: FOOST WP50 24X500G BAG IN | J7: FOOST WP50 24X500G BAG IN | K7: 142 | L7: 480 | M7: 0 | N7: 622
A8: GAUCHO FS 600-100 ML 18% BAYAR | B8: 10 | C8: 400 | D8: 0 | E8: 410 | F8: GAUCHO FS600 50X100ML BOT IN | J8: GAUCHO FS600 2X5L BOT IN | K8: 40 | L8: 900 | M8: 0 | N8: 940
A9: GAUCHO FS600-5ML 18% BAYAR | B9: 40 | C9: 900 | D9: 0 | E9: 940 | F9: GAUCHO FS600 2X5L BOT IN | J9: GAUCHO FS600 50X100ML BOT IN | K9: 10 | L9: 400 | M9: 0 | N9: 410
A10: LAUDIS BAYER | B10: 400 | C10: 40 | D10: 0 | E10: 440 | F10: LAUDIS SC630 8X115ML BOT IN | J10: LAUDIS SC630 8X115ML BOT IN | K10: 400 | L10: 40 | M10: 0 | N10: 440
A11: MILLET HYBRID 9001 20X1.5 BAG | B11: 0 | C11: 30080 | D11: 17544 | E11: 12536 | F11: MILLET HYBRID 9001 20X1.5 BAG IN | J11: MILLET HYBRID 9001 20X1.5 BAG IN | K11: 0 | L11: 30080 | M11: 17544 | N11: 12536
A12: MILLET HYBRID 9450 20X1.5 BAG | B12: 0 | C12: 680 | D12: 590 | E12: 90 | F12: MILLET HYBRID 9450 20X1 5KG BAG IN | J12: MILLET HYBRID 9450 20X1 5KG BAG IN | K12: 0 | L12: 680 | M12: 590 | N12: 90
A13: MILLET PA 9180 20X1.50KG | B13: 0 | C13: 680 | D13: 660 | E13: 20 | F13: MILLET PA 9180 (LOC) 20X1.50KG BAG IN | J13: MILLET PA 9180 (LOC) 20X1.50KG BAG IN | K13: 0 | L13: 680 | M13: 660 | N13: 20
A14: OBERON-100 ML (Bayer) 18% | B14: 0 | C14: 0 | D14: 0 | E14: 0 | F14: OBERON (T) SC240 50X100ML BOT IN | J14: OBERON (T) SC240 40X200ML BOT IN | K14: 0 | L14: 0 | M14: 0 | N14: 0
A15: OBERON -200ML 18% | B15: 0 | C15: 0 | D15: 0 | E15: 0 | F15: OBERON (T) SC240 40X200ML BOT IN | J15: OBERON (T) SC240 50X100ML BOT IN | K15: 0 | L15: 0 | M15: 0 | N15: 0
A16: REGENT GR0,3 20X1KG -18% | B16: 140 | C16: 300 | D16: 0 | E16: 440 | F16: REGENT GR0 3 20X1KG BAG IN | J16: REGENT (T) SC50 10X1L BOT IN | K16: 103 | L16: 0 | M16: 0 | N16: 103
A17: REGENT GR0,3- 5 KG | B17: 20 | C17: 0 | D17: 0 | E17: 20 | F17: REGENT GR0 3 4X5KG BAG IN | J17: REGENT (T) SC50 20X250ML BOT IN | K17: 100 | L17: 0 | M17: 0 | N17: 100
A18: REGENT (SC) -100GM-18% | B18: 10 | C18: 0 | D18: 0 | E18: 10 | F18: REGENT (T) SC50 50X100ML BOT IN | J18: REGENT (T) SC50 20X500ML BOT IN | K18: 120 | L18: 0 | M18: 0 | N18: 120
A19: REGENT (SC) 1 LTR 18% | B19: 103 | C19: 0 | D19: 0 | E19: 103 | F19: REGENT (T) SC50 10X1L BOT IN | J19: REGENT (T) SC50 50X100ML BOT IN | K19: 10 | L19: 0 | M19: 0 | N19: 10
A20: REGENT (SC)-250GM 18% | B20: 100 | C20: 0 | D20: 0 | E20: 100 | F20: REGENT (T) SC50 20X250ML BOT IN | J20: REGENT GR0 3 20X1KG BAG IN | K20: 140 | L20: 300 | M20: 0 | N20: 440
A21: REGENT (SC)-500G 18% | B21: 120 | C21: 0 | D21: 0 | E21: 120 | F21: REGENT (T) SC50 20X500ML BOT IN | J21: REGENT GR0 3 4X5KG BAG IN | K21: 20 | L21: 0 | M21: 0 | N21: 20
A22: SOLOMAN -250 | B22: 0 | C22: 0 | D22: 0 | E22: 0 | F22: SOLOMON OD300 40X250ML BOT IN | J22: SOLOMON OD300 40X250ML BOT IN | K22: 0 | L22: 0 | M22: 0 | N22: 0
A23: SOLOMON OD300 50X100 ML-18% | B23: 0 | C23: 0 | D23: 0 | E23: 0 | F23: SOLOMON OD300 50X100ML BOT IN | J23: SOLOMON OD300 50X100ML BOT IN | K23: 0 | L23: 0 | M23: 0 | N23: 0
J24: Grand Total | K24: 1085 | L24: 33560 | M24: 18794 | N24: 15851

Sheet Master
A1: Item Details | B1: Master Name
A2: ALANTO (T)-250ML 18% | B2: ALANTO (T) SC240 40X250ML BOT IN
A3: ANTRACOL (T) WP7010X1 KG 18% | B3: ANTRACOL (T) WP70 10X1KG BAG IN
A4: ANTRACOL (T) WP70 20X500 GM 18% | B4: ANTRACOL (T) WP70 20X500GR BAG IN
A5: ANTRACOL (T) WP70 -250 GM 18% | B5: ANTRACOL (T) WP70 40X250GR BAG IN
A6: FOOST WP50 24X500 BAG( BAYAR) 18% | B6: FOOST WP50 24X500G BAG IN
A7: FOOST WP50-500G 18% ( BAYAR ) | B7: FOOST WP50 24X500G BAG IN
A8: GAUCHO FS 600-100 ML 18% BAYAR | B8: GAUCHO FS600 50X100ML BOT IN
A9: GAUCHO FS600-5ML 18% BAYAR | B9: GAUCHO FS600 2X5L BOT IN
A10: LAUDIS BAYER | B10: LAUDIS SC630 8X115ML BOT IN
A11: MILLET HYBRID 9001 20X1.5 BAG | B11: MILLET HYBRID 9001 20X1.5 BAG IN
A12: MILLET HYBRID 9450 20X1.5 BAG | B12: MILLET HYBRID 9450 20X1 5KG BAG IN
A13: MILLET PA 9180 20X1.50KG | B13: MILLET PA 9180 (LOC) 20X1.50KG BAG IN
A14: OBERON-100 ML (Bayer) 18% | B14: OBERON (T) SC240 50X100ML BOT IN
A15: OBERON -200ML 18% | B15: OBERON (T) SC240 40X200ML BOT IN
A16: REGENT GR0,3 20X1KG -18% | B16: REGENT GR0 3 20X1KG BAG IN
A17: REGENT GR0,3- 5 KG | B17: REGENT GR0 3 4X5KG BAG IN
A18: REGENT (SC) -100GM-18% | B18: REGENT (T) SC50 50X100ML BOT IN
A19: REGENT (SC) 1 LTR 18% | B19: REGENT (T) SC50 10X1L BOT IN
A20: REGENT (SC)-250GM 18% | B20: REGENT (T) SC50 20X250ML BOT IN
A21: REGENT (SC)-500G 18% | B21: REGENT (T) SC50 20X500ML BOT IN
A22: SOLOMAN -250 | B22: SOLOMON OD300 40X250ML BOT IN
A23: SOLOMON OD300 50X100 ML-18% | B23: SOLOMON OD300 50X100ML BOT IN

Sheet Final Dealer Work
B2: PRODUCT | C2: ITEMALIAS | D2: Bpc | E2: Volume | F2: Opening Qty | G2: Purchase Qty | H2: Purchase Return Qty | I2: Sales Qty | J2: Sales Return Qty | K2: Transfer Qty | L2: Consignment Qty | M2: Adjustment Qty | N2: CLSG
B3: ALANTO (T) SC240 40X250ML BOT IN | F3: 0 | G3: 0 | H3: 0 | I3: 0 | J3: 0 | K3: 0 | L3: 0 | M3: 0 | N3: 0
B4: ANTRACOL (T) WP70 10X1KG BAG IN | F4: 0 | G4: 0 | H4: 0 | I4: 0 | J4: 0 | K4: 0 | L4: 0 | M4: 0 | N4: 0
B5: ANTRACOL (T) WP70 20X500GR BAG IN | F5: 0 | G5: 0 | H5: 0 | I5: 0 | J5: 0 | K5: 0 | L5: 0 | M5: 0 | N5: 0
B6: ANTRACOL (T) WP70 40X250GR BAG IN | F6: 0 | G6: 0 | H6: 0 | I6: 0 | J6: 0 | K6: 0 | L6: 0 | M6: 0 | N6: 0
B7: FOOST WP50 24X500G BAG IN | F7: 142 | G7: 480 | H7: 0 | I7: 0 | J7: 0 | K7: 0 | L7: 0 | M7: 0 | N7: 622
B8: GAUCHO FS600 2X5L BOT IN | F8: 40 | G8: 900 | H8: 0 | I8: 0 | J8: 0 | K8: 0 | L8: 0 | M8: 0 | N8: 940
B9: GAUCHO FS600 50X100ML BOT IN | F9: 10 | G9: 400 | H9: 0 | I9: 0 | J9: 0 | K9: 0 | L9: 0 | M9: 0 | N9: 410
B10: LAUDIS SC630 8X115ML BOT IN | F10: 400 | G10: 40 | H10: 0 | I10: 0 | J10: 0 | K10: 0 | L10: 0 | M10: 0 | N10: 440
B11: MILLET HYBRID 9001 20X1.5 BAG IN | F11: 0 | G11: 30080 | H11: 0 | I11: 17544 | J11: 0 | K11: 0 | L11: 0 | M11: 0 | N11: 12536
B12: MILLET HYBRID 9450 20X1 5KG BAG IN | F12: 0 | G12: 680 | H12: 0 | I12: 590 | J12: 0 | K12: 0 | L12: 0 | M12: 0 | N12: 90
B13: MILLET PA 9180 (LOC) 20X1.50KG BAG IN | F13: 0 | G13: 680 | H13: 0 | I13: 660 | J13: 0 | K13: 0 | L13: 0 | M13: 0 | N13: 20
B14: OBERON (T) SC240 40X200ML BOT IN | F14: 0 | G14: 0 | H14: 0 | I14: 0 | J14: 0 | K14: 0 | L14: 0 | M14: 0 | N14: 0
B15: OBERON (T) SC240 50X100ML BOT IN | F15: 0 | G15: 0 | H15: 0 | I15: 0 | J15: 0 | K15: 0 | L15: 0 | M15: 0 | N15: 0
B16: REGENT (T) SC50 10X1L BOT IN | F16: 103 | G16: 0 | H16: 0 | I16: 0 | J16: 0 | K16: 0 | L16: 0 | M16: 0 | N16: 103
B17: REGENT (T) SC50 20X250ML BOT IN | F17: 100 | G17: 0 | H17: 0 | I17: 0 | J17: 0 | K17: 0 | L17: 0 | M17: 0 | N17: 100
B18: REGENT (T) SC50 20X500ML BOT IN | F18: 120 | G18: 0 | H18: 0 | I18: 0 | J18: 0 | K18: 0 | L18: 0 | M18: 0 | N18: 120
B19: REGENT (T) SC50 50X100ML BOT IN | F19: 10 | G19: 0 | H19: 0 | I19: 0 | J19: 0 | K19: 0 | L19: 0 | M19: 0 | N19: 10
B20: REGENT GR0 3 20X1KG BAG IN | F20: 140 | G20: 300 | H20: 0 | I20: 0 | J20: 0 | K20: 0 | L20: 0 | M20: 0 | N20: 440
B21: REGENT GR0 3 4X5KG BAG IN | F21: 20 | G21: 0 | H21: 0 | I21: 0 | J21: 0 | K21: 0 | L21: 0 | M21: 0 | N21: 20
B22: SOLOMON OD300 40X250ML BOT IN | F22: 0 | G22: 0 | H22: 0 | I22: 0 | J22: 0 | K22: 0 | L22: 0 | M22: 0 | N22: 0
B23: SOLOMON OD300 50X100ML BOT IN | F23: 0 | G23: 0 | H23: 0 | I23: 0 | J23: 0 | K23: 0 | L23: 0 | M23: 0 | N23: 0
B24: Grand Total | F24: 1085 | G24: 33560 | H24: 0 | I24: 18794 | J24: 0 | K24: 0 | L24: 0 | M24: 0 | N24: 15851

Sheet Zylem SNS Report
A2: Company Name:-BAYER
A3: Stock and Sales FOR THE PERIOD 01-Apr-2021 TO 30-Jun-2021
A4: Generated on 7/20/2021 5:40:58 AM
A5: DISTRIBUTOR PRODUCTWISE
A6: OUTPUT IN : PIC,DETAILS AS : Column,CONSIDER : Voucher Date,INCLUDE VALIDATION : False
A7: DISTRIBUTOR:Samariya Brothers,
A8: DISTRIBUTOR | B8: SAPCODE | C8: PRODUCT | D8: ITEMALIAS | E8: Opening Qty | F8: Purchase Qty | G8: Purchase Return Qty | H8: Sales Qty | I8: Sales Return Qty | J8: Transfer Qty | K8: Consignment Qty | L8: Adjustment Qty | M8: CLSG
A9: Samariya Brothers | B9: 9064905 | C9: FOOST WP50 24X500G BAG IN | D9: 85811770 | E9: 142 | F9: 480 | G9: 0 | H9: 0 | I9: 0 | J9: 0 | K9: 0 | L9: 0 | M9: 622
A10: Samariya Brothers | B10: 9064905 | C10: GAUCHO FS600 2X5L BOT IN | D10: 3823915 | E10: 40 | F10: 900 | G10: 0 | H10: 0 | I10: 0 | J10: 0 | K10: 0 | L10: 0 | M10: 940
A11: Samariya Brothers | B11: 9064905 | C11: GAUCHO FS600 50X100ML BOT IN | D11: 79664141 | E11: 10 | F11: 400 | G11: 0 | H11: 0 | I11: 0 | J11: 0 | K11: 0 | L11: 0 | M11: 410
A12: Samariya Brothers | B12: 9064905 | C12: LAUDIS SC630 8X115ML BOT IN | D12: 80491085 | E12: 400 | F12: 40 | G12: 0 | H12: 0 | I12: 0 | J12: 0 | K12: 0 | L12: 0 | M12: 440
A13: Samariya Brothers | B13: 9064905 | C13: MILLET HYBRID 9001 20X1.5 BAG IN | D13: 84986003 | E13: 0 | F13: 30080 | G13: 0 | H13: 19044 | I13: 1500 | J13: 0 | K13: 0 | L13: 0 | M13: 12536
A14: Samariya Brothers | B14: 9064905 | C14: MILLET HYBRID 9450 20X1 5KG BAG IN | D14: 80228716 | E14: 0 | F14: 680 | G14: 0 | H14: 710 | I14: 120 | J14: 0 | K14: 0 | L14: 0 | M14: 90
A15: Samariya Brothers | B15: 9064905 | C15: REGENT (T) SC50 20X250ML BOT IN | D15: 5976951 | E15: 100 | F15: 0 | G15: 0 | H15: 0 | I15: 0 | J15: 0 | K15: 0 | L15: 0 | M15: 100
A16: Samariya Brothers | B16: 9064905 | C16: REGENT (T) SC50 20X500ML BOT IN | D16: 5987678 | E16: 120 | F16: 0 | G16: 0 | H16: 0 | I16: 0 | J16: 0 | K16: 0 | L16: 0 | M16: 120
A17: Samariya Brothers | B17: 9064905 | C17: REGENT (T) SC50 50X100ML BOT IN | D17: 5975343 | E17: 10 | F17: 0 | G17: 0 | H17: 0 | I17: 0 | J17: 0 | K17: 0 | L17: 0 | M17: 10
A18: Samariya Brothers | B18: 9064905 | C18: REGENT GR0 3 20X1KG BAG IN | D18: 79667140 | E18: 140 | F18: 300 | G18: 0 | H18: 0 | I18: 0 | J18: 0 | K18: 0 | L18: 0 | M18: 440
A19: Samariya Brothers | B19: 9064905 | C19: REGENT GR0 3 4X5KG BAG IN | D19: 80018703 | E19: 20 | F19: 0 | G19: 0 | H19: 0 | I19: 0 | J19: 0 | K19: 0 | L19: 0 | M19: 20
A20: Samariya Brothers | B20: 9064905 | C20: MILLET PA 9180 (LOC) 20X1.50KG BAG IN | D20: 86706040 | E20: 0 | F20: 680 | G20: 0 | H20: 700 | I20: 40 | J20: 0 | K20: 0 | L20: 0 | M20: 20
A21: Samariya Brothers | B21: 9064905 | C21: REGENT (T) SC50 10X1L BOT IN | D21: 5962667 | E21: 103 | F21: 0 | G21: 0 | H21: 0 | I21: 0 | J21: 0 | K21: 0 | L21: 0 | M21: 103
A22: GRANDTOTAL | E22: 1085 | F22: 33560 | G22: 0 | H22: 20454 | I22: 1660 | J22: 0 | K22: 0 | L22: 0 | M22: 15851

Sheet OPG
A1: FOOST WP50 24X500G BAG IN | B1: =VLOOKUP(A1,'[2]Product Master Sheet'!$B$2:$F$506,5,0) -> 177 | C1: 142
A2: GAUCHO FS600 2X5L BOT IN | B2: =VLOOKUP(A2,'[2]Product Master Sheet'!$B$2:$F$506,5,0) -> 180 | C2: 40
A3: GAUCHO FS600 50X100ML BOT IN | B3: =VLOOKUP(A3,'[2]Product Master Sheet'!$B$2:$F$506,5,0) -> 182 | C3: 10
A4: LAUDIS SC630 8X115ML BOT IN | B4: =VLOOKUP(A4,'[2]Product Master Sheet'!$B$2:$F$506,5,0) -> 212 | C4: 400
A5: MILLET HYBRID 9001 20X1.5 BAG IN | B5: =VLOOKUP(A5,'[2]Product Master Sheet'!$B$2:$F$506,5,0) -> 236 | C5: 0
A6: MILLET HYBRID 9450 20X1 5KG BAG IN | B6: =VLOOKUP(A6,'[2]Product Master Sheet'!$B$2:$F$506,5,0) -> 251 | C6: 0
A7: REGENT GR0 3 20X1KG BAG IN | B7: =VLOOKUP(A7,'[2]Product Master Sheet'!$B$2:$F$506,5,0) -> 335 | C7: 140
A8: MILLET PA 9180 (LOC) 20X1.50KG BAG IN | B8: =VLOOKUP(A8,'[2]Product Master Sheet'!$B$2:$F$506,5,0) -> 915 | C8: 0
A9: ALANTO (T) SC240 40X250ML BOT IN | B9: =VLOOKUP(A9,'[2]Product Master Sheet'!$B$2:$F$506,5,0) -> 29 | C9: 0
A10: ANTRACOL (T) WP70 10X1KG BAG IN | B10: =VLOOKUP(A10,'[2]Product Master Sheet'!$B$2:$F$506,5,0) -> 42 | C10: 0
A11: ANTRACOL (T) WP70 20X500GR BAG IN | B11: =VLOOKUP(A11,'[2]Product Master Sheet'!$B$2:$F$506,5,0) -> 43 | C11: 0
A12: ANTRACOL (T) WP70 40X250GR BAG IN | B12: =VLOOKUP(A12,'[2]Product Master Sheet'!$B$2:$F$506,5,0) -> 44 | C12: 0
A13: OBERON (T) SC240 40X200ML BOT IN | B13: =VLOOKUP(A13,'[2]Product Master Sheet'!$B$2:$F$506,5,0) -> 299 | C13: 0
A14: OBERON (T) SC240 50X100ML BOT IN | B14: =VLOOKUP(A14,'[2]Product Master Sheet'!$B$2:$F$506,5,0) -> 300 | C14: 0
A15: REGENT (T) SC50 10X1L BOT IN | B15: =VLOOKUP(A15,'[2]Product Master Sheet'!$B$2:$F$506,5,0) -> 324 | C15: 103
A16: REGENT (T) SC50 20X250ML BOT IN | B16: =VLOOKUP(A16,'[2]Product Master Sheet'!$B$2:$F$506,5,0) -> 325 | C16: 100
A17: REGENT (T) SC50 20X500ML BOT IN | B17: =VLOOKUP(A17,'[2]Product Master Sheet'!$B$2:$F$506,5,0) -> 326 | C17: 120
A18: REGENT (T) SC50 50X100ML BOT IN | B18: =VLOOKUP(A18,'[2]Product Master Sheet'!$B$2:$F$506,5,0) -> 327 | C18: 10
A19: REGENT GR0 3 4X5KG BAG IN | B19: =VLOOKUP(A19,'[2]Product Master Sheet'!$B$2:$F$506,5,0) -> 336 | C19: 20
A20: SOLOMON OD300 40X250ML BOT IN | B20: =VLOOKUP(A20,'[2]Product Master Sheet'!$B$2:$F$506,5,0) -> 368 | C20: 0
A21: SOLOMON OD300 50X100ML BOT IN | B21: =VLOOKUP(A21,'[2]Product Master Sheet'!$B$2:$F$506,5,0) -> 370 | C21: 0

Sheet Reco
B1: Zylem Report -01-Apr-2021 TO 30-Jun-2021 | K1: Dealer Report - 01-Apr-2021 TO 30-Jun-2021 | T1: Difference (+/-)
A3: DEALER CODE | B3: Opening Qty | C3: Purchase Qty | D3: Purchase Return Qty | E3: Sales Qty | F3: Sales Return Qty | G3: Transfer Qty | H3: Consignment Qty | I3: Adjustment Qty | J3: CLSG | K3: Opening Qty | L3: Purchase Qty | M3: Purchase Return Qty | N3: Sales Qty | O3: Sales Return Qty | P3: Transfer Qty | Q3: Consignment Qty | R3: Adjustment Qty | S3: CLSG | T3: Opening Stock Qty | U3: Purchase Qty | V3: Purchase Return Qty | W3: Sales Qty | X3: Sales Return Qty | Y3: Transfer Qty | Z3: Consignment Qty | AA3: Adjustments Qty | AB3: CLSG | AC3: Remark
A4: FOOST WP50 24X500G BAG IN | B4: 142 | C4: 480 | D4: 0 | E4: 0 | F4: 0 | G4: 0 | H4: 0 | I4: 0 | J4: 622 | K4: 142 | L4: 480 | M4: 0 | N4: 0 | O4: 0 | P4: 0 | Q4: 0 | R4: 0 | S4: 622 | T4: 0 | U4: 0 | V4: 0 | W4: 0 | X4: 0 | Y4: 0 | Z4: 0 | AA4: 0 | AB4: 0 | AC4: Ok
A5: GAUCHO FS600 2X5L BOT IN | B5: 40 | C5: 900 | D5: 0 | E5: 0 | F5: 0 | G5: 0 | H5: 0 | I5: 0 | J5: 940 | K5: 40 | L5: 900 | M5: 0 | N5: 0 | O5: 0 | P5: 0 | Q5: 0 | R5: 0 | S5: 940 | T5: 0 | U5: 0 | V5: 0 | W5: 0 | X5: 0 | Y5: 0 | Z5: 0 | AA5: 0 | AB5: 0 | AC5: Ok
A6: GAUCHO FS600 50X100ML BOT IN | B6: 10 | C6: 400 | D6: 0 | E6: 0 | F6: 0 | G6: 0 | H6: 0 | I6: 0 | J6: 410 | K6: 10 | L6: 400 | M6: 0 | N6: 0 | O6: 0 | P6: 0 | Q6: 0 | R6: 0 | S6: 410 | T6: 0 | U6: 0 | V6: 0 | W6: 0 | X6: 0 | Y6: 0 | Z6: 0 | AA6: 0 | AB6: 0 | AC6: Ok
A7: LAUDIS SC630 8X115ML BOT IN | B7: 400 | C7: 40 | D7: 0 | E7: 0 | F7: 0 | G7: 0 | H7: 0 | I7: 0 | J7: 440 | K7: 400 | L7: 40 | M7: 0 | N7: 0 | O7: 0 | P7: 0 | Q7: 0 | R7: 0 | S7: 440 | T7: 0 | U7: 0 | V7: 0 | W7: 0 | X7: 0 | Y7: 0 | Z7: 0 | AA7: 0 | AB7: 0 | AC7: Ok
A8: MILLET HYBRID 9001 20X1.5 BAG IN | B8: 0 | C8: 30080 | D8: 0 | E8: 19044 | F8: 1500 | G8: 0 | H8: 0 | I8: 0 | J8: 12536 | K8: 0 | L8: 30080 | M8: 0 | N8: 17544 | O8: 0 | P8: 0 | Q8: 0 | R8: 0 | S8: 12536 | T8: 0 | U8: 0 | V8: 0 | W8: 1500 | X8: 1500 | Y8: 0 | Z8: 0 | AA8: 0 | AB8: 0 | AC8: Ok
A9: MILLET HYBRID 9450 20X1 5KG BAG IN | B9: 0 | C9: 680 | D9: 0 | E9: 710 | F9: 120 | G9: 0 | H9: 0 | I9: 0 | J9: 90 | K9: 0 | L9: 680 | M9: 0 | N9: 590 | O9: 0 | P9: 0 | Q9: 0 | R9: 0 | S9: 90 | T9: 0 | U9: 0 | V9: 0 | W9: 120 | X9: 120 | Y9: 0 | Z9: 0 | AA9: 0 | AB9: 0 | AC9: Ok
A10: REGENT (T) SC50 20X250ML BOT IN | B10: 100 | C10: 0 | D10: 0 | E10: 0 | F10: 0 | G10: 0 | H10: 0 | I10: 0 | J10: 100 | K10: 100 | L10: 0 | M10: 0 | N10: 0 | O10: 0 | P10: 0 | Q10: 0 | R10: 0 | S10: 100 | T10: 0 | U10: 0 | V10: 0 | W10: 0 | X10: 0 | Y10: 0 | Z10: 0 | AA10: 0 | AB10: 0 | AC10: Ok
A11: REGENT (T) SC50 20X500ML BOT IN | B11: 120 | C11: 0 | D11: 0 | E11: 0 | F11: 0 | G11: 0 | H11: 0 | I11: 0 | J11: 120 | K11: 120 | L11: 0 | M11: 0 | N11: 0 | O11: 0 | P11: 0 | Q11: 0 | R11: 0 | S11: 120 | T11: 0 | U11: 0 | V11: 0 | W11: 0 | X11: 0 | Y11: 0 | Z11: 0 | AA11: 0 | AB11: 0 | AC11: Ok
A12: REGENT (T) SC50 50X100ML BOT IN | B12: 10 | C12: 0 | D12: 0 | E12: 0 | F12: 0 | G12: 0 | H12: 0 | I12: 0 | J12: 10 | K12: 10 | L12: 0 | M12: 0 | N12: 0 | O12: 0 | P12: 0 | Q12: 0 | R12: 0 | S12: 10 | T12: 0 | U12: 0 | V12: 0 | W12: 0 | X12: 0 | Y12: 0 | Z12: 0 | AA12: 0 | AB12: 0 | AC12: Ok
A13: REGENT GR0 3 20X1KG BAG IN | B13: 140 | C13: 300 | D13: 0 | E13: 0 | F13: 0 | G13: 0 | H13: 0 | I13: 0 | J13: 440 | K13: 140 | L13: 300 | M13: 0 | N13: 0 | O13: 0 | P13: 0 | Q13: 0 | R13: 0 | S13: 440 | T13: 0 | U13: 0 | V13: 0 | W13: 0 | X13: 0 | Y13: 0 | Z13: 0 | AA13: 0 | AB13: 0 | AC13: Ok
A14: REGENT GR0 3 4X5KG BAG IN | B14: 20 | C14: 0 | D14: 0 | E14: 0 | F14: 0 | G14: 0 | H14: 0 | I14: 0 | J14: 20 | K14: 20 | L14: 0 | M14: 0 | N14: 0 | O14: 0 | P14: 0 | Q14: 0 | R14: 0 | S14: 20 | T14: 0 | U14: 0 | V14: 0 | W14: 0 | X14: 0 | Y14: 0 | Z14: 0 | AA14: 0 | AB14: 0 | AC14: Ok
A15: MILLET PA 9180 (LOC) 20X1.50KG BAG IN | B15: 0 | C15: 680 | D15: 0 | E15: 700 | F15: 40 | G15: 0 | H15: 0 | I15: 0 | J15: 20 | K15: 0 | L15: 680 | M15: 0 | N15: 660 | O15: 0 | P15: 0 | Q15: 0 | R15: 0 | S15: 20 | T15: 0 | U15: 0 | V15: 0 | W15: 40 | X15: 40 | Y15: 0 | Z15: 0 | AA15: 0 | AB15: 0 | AC15: Ok
A16: REGENT (T) SC50 10X1L BOT IN | B16: 103 | C16: 0 | D16: 0 | E16: 0 | F16: 0 | G16: 0 | H16: 0 | I16: 0 | J16: 103 | K16: 103 | L16: 0 | M16: 0 | N16: 0 | O16: 0 | P16: 0 | Q16: 0 | R16: 0 | S16: 103 | T16: 0 | U16: 0 | V16: 0 | W16: 0 | X16: 0 | Y16: 0 | Z16: 0 | AA16: 0 | AB16: 0 | AC16: Ok
A17: ALANTO (T) SC240 40X250ML BOT IN | B17: 0 | C17: 0 | D17: 0 | E17: 0 | F17: 0 | G17: 0 | H17: 0 | I17: 0 | J17: 0 | K17: 0 | L17: 0 | M17: 0 | N17: 0 | O17: 0 | P17: 0 | Q17: 0 | R17: 0 | S17: 0 | T17: 0 | U17: 0 | V17: 0 | W17: 0 | X17: 0 | Y17: 0 | Z17: 0 | AA17: 0 | AB17: 0 | AC17: Ok
A18: ANTRACOL (T) WP70 10X1KG BAG IN | B18: 0 | C18: 0 | D18: 0 | E18: 0 | F18: 0 | G18: 0 | H18: 0 | I18: 0 | J18: 0 | K18: 0 | L18: 0 | M18: 0 | N18: 0 | O18: 0 | P18: 0 | Q18: 0 | R18: 0 | S18: 0 | T18: 0 | U18: 0 | V18: 0 | W18: 0 | X18: 0 | Y18: 0 | Z18: 0 | AA18: 0 | AB18: 0 | AC18: Ok
A19: ANTRACOL (T) WP70 20X500GR BAG IN | B19: 0 | C19: 0 | D19: 0 | E19: 0 | F19: 0 | G19: 0 | H19: 0 | I19: 0 | J19: 0 | K19: 0 | L19: 0 | M19: 0 | N19: 0 | O19: 0 | P19: 0 | Q19: 0 | R19: 0 | S19: 0 | T19: 0 | U19: 0 | V19: 0 | W19: 0 | X19: 0 | Y19: 0 | Z19: 0 | AA19: 0 | AB19: 0 | AC19: Ok
A20: ANTRACOL (T) WP70 40X250GR BAG IN | B20: 0 | C20: 0 | D20: 0 | E20: 0 | F20: 0 | G20: 0 | H20: 0 | I20: 0 | J20: 0 | K20: 0 | L20: 0 | M20: 0 | N20: 0 | O20: 0 | P20: 0 | Q20: 0 | R20: 0 | S20: 0 | T20: 0 | U20: 0 | V20: 0 | W20: 0 | X20: 0 | Y20: 0 | Z20: 0 | AA20: 0 | AB20: 0 | AC20: Ok
A21: OBERON (T) SC240 40X200ML BOT IN | B21: 0 | C21: 0 | D21: 0 | E21: 0 | F21: 0 | G21: 0 | H21: 0 | I21: 0 | J21: 0 | K21: 0 | L21: 0 | M21: 0 | N21: 0 | O21: 0 | P21: 0 | Q21: 0 | R21: 0 | S21: 0 | T21: 0 | U21: 0 | V21: 0 | W21: 0 | X21: 0 | Y21: 0 | Z21: 0 | AA21: 0 | AB21: 0 | AC21: Ok
A22: OBERON (T) SC240 50X100ML BOT IN | B22: 0 | C22: 0 | D22: 0 | E22: 0 | F22: 0 | G22: 0 | H22: 0 | I22: 0 | J22: 0 | K22: 0 | L22: 0 | M22: 0 | N22: 0 | O22: 0 | P22: 0 | Q22: 0 | R22: 0 | S22: 0 | T22: 0 | U22: 0 | V22: 0 | W22: 0 | X22: 0 | Y22: 0 | Z22: 0 | AA22: 0 | AB22: 0 | AC22: Ok
A23: SOLOMON OD300 40X250ML BOT IN | B23: 0 | C23: 0 | D23: 0 | E23: 0 | F23: 0 | G23: 0 | H23: 0 | I23: 0 | J23: 0 | K23: 0 | L23: 0 | M23: 0 | N23: 0 | O23: 0 | P23: 0 | Q23: 0 | R23: 0 | S23: 0 | T23: 0 | U23: 0 | V23: 0 | W23: 0 | X23: 0 | Y23: 0 | Z23: 0 | AA23: 0 | AB23: 0 | AC23: Ok
A24: SOLOMON OD300 50X100ML BOT IN | B24: 0 | C24: 0 | D24: 0 | E24: 0 | F24: 0 | G24: 0 | H24: 0 | I24: 0 | J24: 0 | K24: 0 | L24: 0 | M24: 0 | N24: 0 | O24: 0 | P24: 0 | Q24: 0 | R24: 0 | S24: 0 | T24: 0 | U24: 0 | V24: 0 | W24: 0 | X24: 0 | Y24: 0 | Z24: 0 | AA24: 0 | AB24: 0 | AC24: Ok
A25: Total | B25: 1085 | C25: 33560 | D25: 0 | E25: 20454 | F25: 1660 | G25: 0 | H25: 0 | I25: 0 | J25: 15851 | K25: 1085 | L25: 33560 | M25: 0 | N25: 18794 | O25: 0 | P25: 0 | Q25: 0 | R25: 0 | S25: 15851 | T25: 0 | U25: 0 | V25: 0 | W25: 1660 | X25: 1660 | Y25: 0 | Z25: 0 | AA25: 0 | AB25: 0
